[Event "Titled Tuesday Blitz June 20 Early 2023"]
[White "DanyKopy"]
[Black "Samaganova, Aleksandra"]
[BlackFideId "13800221"]
[WhiteElo "2452"]
[BlackElo "1858"]
[Result "1-0"]
[Round "6"]
[TimeControl "180+2"]
[Date "2023.06.20"]
[WhiteClock "0:00:08"]
[BlackClock "0:00:00"]
[Board "165"]

1. e4 {[%clk 0:03:00]}  c5 {[%clk 0:02:53]} 2. Nf3 {[%clk 0:02:58]}  e6 {[%clk 0:02:49]} 3. Nc3 {[%clk 0:02:57]}  a6 {[%clk 0:02:49]} 4. g3 {[%clk 0:02:53]}  b5 {[%clk 0:02:48]} 5. Bg2 {[%clk 0:02:53]}  Bb7 {[%clk 0:02:47]} 6. d3 {[%clk 0:02:52]}  Qc7 {[%clk 0:02:46]} 7. O-O {[%clk 0:02:52]}  Nf6 {[%clk 0:02:46]} 8. a4 {[%clk 0:02:52]}  b4 {[%clk 0:02:45]} 9. Nb1 {[%clk 0:02:52]}  d5 {[%clk 0:02:45]} 10. Bf4 {[%clk 0:02:48]}  Qc8 {[%clk 0:02:38]} 11. Nbd2 {[%clk 0:02:48]}  Be7 {[%clk 0:02:21]} 12. Re1 {[%clk 0:02:28]}  O-O {[%clk 0:02:14]} 13. a5 {[%clk 0:02:24]}  Nbd7 {[%clk 0:01:59]} 14. h4 {[%clk 0:02:15]}  Bd8 {[%clk 0:01:48]} 15. Bd6 {[%clk 0:02:08]}  Re8 {[%clk 0:01:47]} 16. exd5 {[%clk 0:02:06]}  Bxd5 {[%clk 0:01:40]} 17. Nc4 {[%clk 0:02:02]}  Qb7 {[%clk 0:01:29]} 18. Ne3 {[%clk 0:01:43]}  Bc6 {[%clk 0:01:20]} 19. Ne5 {[%clk 0:01:30]}  Bxg2 {[%clk 0:01:09]} 20. Nxg2 {[%clk 0:01:29]}  Bc7 {[%clk 0:01:00]} 21. Nc4 {[%clk 0:01:25]}  Nd5 {[%clk 0:00:47]} 22. Qf3 {[%clk 0:01:22]}  N7f6 {[%clk 0:00:44]} 23. Bxc5 {[%clk 0:01:16]}  Qc6 {[%clk 0:00:37]} 24. Bd4 {[%clk 0:01:13]}  Red8 {[%clk 0:00:31]} 25. Bxf6 {[%clk 0:01:11]}  gxf6 {[%clk 0:00:31]} 26. Nge3 {[%clk 0:01:03]}  f5 {[%clk 0:00:25]} 27. Nxd5 {[%clk 0:00:52]}  Qxd5 {[%clk 0:00:21]} 28. Qxd5 {[%clk 0:00:49]}  Rxd5 {[%clk 0:00:22]} 29. Kg2 {[%clk 0:00:34]}  b3 {[%clk 0:00:22]} 30. cxb3 {[%clk 0:00:30]}  Rxd3 {[%clk 0:00:21]} 31. Re3 {[%clk 0:00:23]}  Rad8 {[%clk 0:00:18]} 32. Rc1 {[%clk 0:00:18]}  R3d5 {[%clk 0:00:16]} 33. b4 {[%clk 0:00:18]}  Rd4 {[%clk 0:00:14]} 34. Rb3 {[%clk 0:00:15]}  Bb8 {[%clk 0:00:12]} 35. b5 {[%clk 0:00:15]}  axb5 {[%clk 0:00:12]} 36. Rxb5 {[%clk 0:00:16]}  Rc8 {[%clk 0:00:07]} 37. b3 {[%clk 0:00:15]}  Rd3 {[%clk 0:00:05]} 38. a6 {[%clk 0:00:14]}  Ba7 {[%clk 0:00:05]} 39. Rb7 {[%clk 0:00:14]}  Bd4 {[%clk 0:00:05]} 40. Rxf7 {[%clk 0:00:12]}  Rxb3 {[%clk 0:00:03]} 41. a7 {[%clk 0:00:10]}  Bxa7 {[%clk 0:00:03]} 42. Rxa7 {[%clk 0:00:09]}  Rb4 {[%clk 0:00:03]} 43. Re7 {[%clk 0:00:06]}  Rbxc4 {[%clk 0:00:04]} 44. Rxc4 {[%clk 0:00:06]}  Rxc4 {[%clk 0:00:04]} 45. Rxe6 {[%clk 0:00:06]}  Kf7 {[%clk 0:00:05]} 46. Re5 {[%clk 0:00:06]}  Kg6 {[%clk 0:00:05]} 47. Rb5 {[%clk 0:00:07]}  Rc2 {[%clk 0:00:05]} 48. Kf3 {[%clk 0:00:06]}  Rc3+ {[%clk 0:00:05]} 49. Kf4 {[%clk 0:00:06]}  Rc4+ {[%clk 0:00:06]} 50. Kf3 {[%clk 0:00:06]}  Rc3+ {[%clk 0:00:06]} 51. Kg2 {[%clk 0:00:07]}  Rc2 {[%clk 0:00:06]} 52. Rb4 {[%clk 0:00:06]}  Rc3 {[%clk 0:00:06]} 53. Rf4 {[%clk 0:00:06]}  Rb3 {[%clk 0:00:05]} 54. f3 {[%clk 0:00:06]}  Ra3 {[%clk 0:00:05]} 55. Kh3 {[%clk 0:00:07]}  Rb3 {[%clk 0:00:04]} 56. Kg2 {[%clk 0:00:07]}  Ra3 {[%clk 0:00:04]} 57. Rb4 {[%clk 0:00:07]}  Rc3 {[%clk 0:00:04]} 58. Rb6+ {[%clk 0:00:07]}  Kg7 {[%clk 0:00:04]} 59. Kf2 {[%clk 0:00:04]}  Ra3 {[%clk 0:00:04]} 60. Ke2 {[%clk 0:00:04]}  Rc3 {[%clk 0:00:03]} 61. Rd6 {[%clk 0:00:05]}  Ra3 {[%clk 0:00:03]} 62. Rd3 {[%clk 0:00:05]}  Ra2+ {[%clk 0:00:03]} 63. Ke3 {[%clk 0:00:06]}  Rg2 {[%clk 0:00:04]} 64. Kf4 {[%clk 0:00:06]}  Ra2 {[%clk 0:00:03]} 65. Kxf5 {[%clk 0:00:05]}  Ra6 {[%clk 0:00:03]} 66. Kg4 {[%clk 0:00:05]}  Ra5 {[%clk 0:00:04]} 67. Kh3 {[%clk 0:00:05]}  Ra4 {[%clk 0:00:04]} 68. g4 {[%clk 0:00:05]}  Kg6 {[%clk 0:00:04]} 69. Kg3 {[%clk 0:00:06]}  Ra1 {[%clk 0:00:02]} 70. Rd6+ {[%clk 0:00:06]}  Kg7 {[%clk 0:00:02]} 71. Rb6 {[%clk 0:00:07]}  Ra2 {[%clk 0:00:02]} 72. h5 {[%clk 0:00:07]}  Ra4 {[%clk 0:00:03]} 73. g5 {[%clk 0:00:07]}  Ra5 {[%clk 0:00:03]} 74. f4 {[%clk 0:00:07]}  Ra3+ {[%clk 0:00:02]} 75. Kg4 {[%clk 0:00:07]}  Ra1 {[%clk 0:00:03]} 76. Rb7+ {[%clk 0:00:07]}  Kg8 {[%clk 0:00:04]} 77. g6 {[%clk 0:00:07]}  hxg6 {[%clk 0:00:03]} 78. hxg6 {[%clk 0:00:08]}  Rg1+ {[%clk 0:00:03]} 79. Kf5 {[%clk 0:00:08]}  Rf1 {[%clk 0:00:04]} 80. Kg5 {[%clk 0:00:08]}  Rg1+ {[%clk 0:00:00]} 81. Kf6 {[%clk 0:00:08]} 1-0


[Site "https://www.chess.com"]

[Event "Titled Tuesday Blitz June 20 Early 2023"]
[White "Matveeva, Olga"]
[Black "Kohler, Aran"]
[WhiteFideId "24107018"]
[BlackFideId "1002856"]
[WhiteElo "2009"]
[BlackElo "2304"]
[Result "1-0"]
[Round "6"]
[TimeControl "180+2"]
[Date "2023.06.20"]
[WhiteClock "0:00:58"]
[BlackClock "0:00:43"]
[Board "167"]

1. d4 {[%clk 0:03:00]}  Nf6 {[%clk 0:02:58]} 2. c4 {[%clk 0:03:01]}  c5 {[%clk 0:02:58]} 3. d5 {[%clk 0:03:00]}  e6 {[%clk 0:02:58]} 4. Nc3 {[%clk 0:03:00]}  exd5 {[%clk 0:02:57]} 5. cxd5 {[%clk 0:03:01]}  d6 {[%clk 0:02:57]} 6. e4 {[%clk 0:03:01]}  g6 {[%clk 0:02:57]} 7. h3 {[%clk 0:03:01]}  Bg7 {[%clk 0:02:57]} 8. Nf3 {[%clk 0:03:02]}  O-O {[%clk 0:02:57]} 9. Bd3 {[%clk 0:03:02]}  a6 {[%clk 0:02:56]} 10. a4 {[%clk 0:03:02]}  Re8 {[%clk 0:02:53]} 11. O-O {[%clk 0:03:02]}  Nbd7 {[%clk 0:02:53]} 12. Bf4 {[%clk 0:03:01]}  Ne5 {[%clk 0:02:52]} 13. Be2 {[%clk 0:02:59]}  Nh5 {[%clk 0:02:46]} 14. Bh2 {[%clk 0:02:51]}  Nxf3+ {[%clk 0:02:40]} 15. Bxf3 {[%clk 0:02:52]}  Qh4 {[%clk 0:02:39]} 16. Bxh5 {[%clk 0:02:50]}  gxh5 {[%clk 0:02:36]} 17. Bxd6 {[%clk 0:02:46]}  Be5 {[%clk 0:02:35]} 18. Bxe5 {[%clk 0:02:41]}  Rxe5 {[%clk 0:02:35]} 19. f4 {[%clk 0:02:19]}  Re8 {[%clk 0:02:32]} 20. Qe1 {[%clk 0:02:15]}  Qe7 {[%clk 0:02:20]} 21. Qg3+ {[%clk 0:02:08]}  Kh8 {[%clk 0:02:19]} 22. Rae1 {[%clk 0:02:06]}  Rg8 {[%clk 0:02:17]} 23. Qf3 {[%clk 0:02:02]}  h4 {[%clk 0:02:16]} 24. f5 {[%clk 0:01:50]}  Qe5 {[%clk 0:01:57]} 25. Qf4 {[%clk 0:01:47]}  Qd4+ {[%clk 0:01:53]} 26. Kh1 {[%clk 0:01:43]}  Bd7 {[%clk 0:01:52]} 27. e5 {[%clk 0:01:37]}  b5 {[%clk 0:01:30]} 28. Rd1 {[%clk 0:01:14]}  Qxf4 {[%clk 0:01:19]} 29. Rxf4 {[%clk 0:01:15]}  bxa4 {[%clk 0:01:19]} 30. e6 {[%clk 0:01:15]}  fxe6 {[%clk 0:01:17]} 31. fxe6 {[%clk 0:01:15]}  Bb5 {[%clk 0:01:15]} 32. Rxh4 {[%clk 0:01:11]}  Raf8 {[%clk 0:01:12]} 33. Ne4 {[%clk 0:01:10]}  Bc4 {[%clk 0:00:58]} 34. e7 {[%clk 0:01:07]}  Rb8 {[%clk 0:00:51]} 35. Nf6 {[%clk 0:00:59]}  Bb3 {[%clk 0:00:43]} 36. Rxh7# {[%clk 0:00:58]} 1-0


[Site "https://www.chess.com"]

[Event "Titled Tuesday Blitz June 20 Early 2023"]
[White "Vega Gutierrez, Sabrina"]
[Black "Kuzmin, Ilya"]
[WhiteFideId "2219026"]
[BlackFideId "4153863"]
[WhiteElo "2209"]
[BlackElo "2093"]
[Result "1/2-1/2"]
[Round "6"]
[TimeControl "180+2"]
[Date "2023.06.20"]
[WhiteClock "0:00:05"]
[BlackClock "0:00:08"]
[Board "168"]

1. e4 {[%clk 0:03:00]}  d5 {[%clk 0:02:59]} 2. exd5 {[%clk 0:03:00]}  Qxd5 {[%clk 0:03:00]} 3. Nf3 {[%clk 0:03:00]}  Nf6 {[%clk 0:03:00]} 4. Be2 {[%clk 0:03:00]}  e5 {[%clk 0:02:57]} 5. Nc3 {[%clk 0:02:51]}  Qa5 {[%clk 0:02:52]} 6. O-O {[%clk 0:02:49]}  Bd6 {[%clk 0:02:43]} 7. d4 {[%clk 0:02:36]}  exd4 {[%clk 0:02:40]} 8. Nxd4 {[%clk 0:02:33]}  a6 {[%clk 0:02:27]} 9. Nb3 {[%clk 0:02:08]}  Qf5 {[%clk 0:02:24]} 10. Bd3 {[%clk 0:02:08]}  Qh5 {[%clk 0:02:14]} 11. Re1+ {[%clk 0:01:59]}  Kf8 {[%clk 0:02:13]} 12. Qxh5 {[%clk 0:01:59]}  Nxh5 {[%clk 0:02:13]} 13. Ne4 {[%clk 0:01:47]}  Be7 {[%clk 0:01:59]} 14. c3 {[%clk 0:00:29]}  Nc6 {[%clk 0:01:58]} 15. Be2 {[%clk 0:00:29]}  Nf6 {[%clk 0:01:58]} 16. Nxf6 {[%clk 0:00:29]}  Bxf6 {[%clk 0:01:58]} 17. Bf4 {[%clk 0:00:29]}  Bd8 {[%clk 0:01:40]} 18. Rad1 {[%clk 0:00:28]}  Be6 {[%clk 0:01:38]} 19. Bf3 {[%clk 0:00:27]}  g5 {[%clk 0:01:03]} 20. Bg3 {[%clk 0:00:24]}  Kg7 {[%clk 0:00:55]} 21. Nc5 {[%clk 0:00:23]}  Bxa2 {[%clk 0:00:51]} 22. Nxb7 {[%clk 0:00:23]}  Bb3 {[%clk 0:00:36]} 23. Rd7 {[%clk 0:00:21]}  Na7 {[%clk 0:00:28]} 24. Nc5 {[%clk 0:00:18]}  Bf6 {[%clk 0:00:14]} 25. Bxa8 {[%clk 0:00:15]}  Rxa8 {[%clk 0:00:15]} 26. Nxb3 {[%clk 0:00:15]}  Rb8 {[%clk 0:00:15]} 27. Nc5 {[%clk 0:00:14]}  Rxb2 {[%clk 0:00:14]} 28. Rxc7 {[%clk 0:00:09]}  Nb5 {[%clk 0:00:14]} 29. h4 {[%clk 0:00:08]}  Nxc7 {[%clk 0:00:14]} 30. hxg5 {[%clk 0:00:07]}  Bxc3 {[%clk 0:00:14]} 31. Rc1 {[%clk 0:00:06]}  Bd2 {[%clk 0:00:10]} 32. Be5+ {[%clk 0:00:06]}  Kg6 {[%clk 0:00:10]} 33. Bxb2 {[%clk 0:00:06]}  Bxc1 {[%clk 0:00:10]} 34. Bxc1 {[%clk 0:00:06]}  a5 {[%clk 0:00:11]} 35. f4 {[%clk 0:00:05]}  Nd5 {[%clk 0:00:08]} 36. Kf2 {[%clk 0:00:05]}  f6 {[%clk 0:00:08]} 37. gxf6 {[%clk 0:00:04]}  Kxf6 {[%clk 0:00:09]} 38. Kf3 {[%clk 0:00:05]}  h5 {[%clk 0:00:09]} 39. Bb2+ {[%clk 0:00:03]}  Kf5 {[%clk 0:00:08]} 40. Nd3 {[%clk 0:00:03]}  a4 {[%clk 0:00:08]} 41. g3 {[%clk 0:00:02]}  Nb6 {[%clk 0:00:07]} 42. Nf2 {[%clk 0:00:02]}  Nc4 {[%clk 0:00:07]} 43. Bc1 {[%clk 0:00:02]}  a3 {[%clk 0:00:07]} 44. Bxa3 {[%clk 0:00:03]}  Nxa3 {[%clk 0:00:07]} 45. Nd1 {[%clk 0:00:03]}  Nc4 {[%clk 0:00:06]} 46. Ne3+ {[%clk 0:00:03]}  Nxe3 {[%clk 0:00:06]} 47. Kxe3 {[%clk 0:00:04]}  Kg4 {[%clk 0:00:06]} 48. Kf2 {[%clk 0:00:04]}  h4 {[%clk 0:00:06]} 49. gxh4 {[%clk 0:00:04]}  Kxf4 {[%clk 0:00:07]} 50. Kg2 {[%clk 0:00:04]}  Kg4 {[%clk 0:00:08]} 51. Kh2 {[%clk 0:00:05]}  Kxh4 {[%clk 0:00:08]} 1/2-1/2


[Site "https://www.chess.com"]

[Event "Titled Tuesday Blitz June 20 Early 2023"]
[White "Szente Varga, Fruzsina"]
[Black "Thiel, Thomas"]
[WhiteFideId "712264"]
[BlackFideId "4615964"]
[WhiteElo "1994"]
[BlackElo "2231"]
[Result "1-0"]
[Round "6"]
[TimeControl "180+2"]
[Date "2023.06.20"]
[WhiteClock "0:00:02"]
[BlackClock "0:00:00"]
[Board "170"]

1. e4 {[%clk 0:03:00]}  d5 {[%clk 0:02:59]} 2. exd5 {[%clk 0:03:00]}  Nf6 {[%clk 0:02:59]} 3. d4 {[%clk 0:03:00]}  Nxd5 {[%clk 0:02:58]} 4. c4 {[%clk 0:02:59]}  Nb6 {[%clk 0:02:58]} 5. Nc3 {[%clk 0:02:59]}  e5 {[%clk 0:02:56]} 6. d5 {[%clk 0:02:53]}  Bb4 {[%clk 0:02:54]} 7. Bd3 {[%clk 0:02:39]}  c6 {[%clk 0:02:52]} 8. dxc6 {[%clk 0:02:32]}  Nxc6 {[%clk 0:02:53]} 9. Ne2 {[%clk 0:02:32]}  O-O {[%clk 0:02:46]} 10. O-O {[%clk 0:02:32]}  f5 {[%clk 0:02:42]} 11. f3 {[%clk 0:02:09]}  Nd4 {[%clk 0:02:38]} 12. Be3 {[%clk 0:01:52]}  Be6 {[%clk 0:02:36]} 13. Qb3 {[%clk 0:01:35]}  Bc5 {[%clk 0:02:34]} 14. Bxd4 {[%clk 0:01:25]}  Bxd4+ {[%clk 0:02:35]} 15. Kh1 {[%clk 0:01:22]}  Rc8 {[%clk 0:02:24]} 16. Nxd4 {[%clk 0:01:13]}  Qxd4 {[%clk 0:02:22]} 17. Rad1 {[%clk 0:01:13]}  Bxc4 {[%clk 0:02:21]} 18. Bxc4+ {[%clk 0:01:13]}  Qxc4 {[%clk 0:02:22]} 19. Qa3 {[%clk 0:01:10]}  Qa6 {[%clk 0:02:00]} 20. Qxa6 {[%clk 0:01:00]}  bxa6 {[%clk 0:01:59]} 21. Rfe1 {[%clk 0:01:01]}  Rfe8 {[%clk 0:01:57]} 22. Kg1 {[%clk 0:00:48]}  Nc4 {[%clk 0:01:55]} 23. Na4 {[%clk 0:00:40]}  Nb6 {[%clk 0:01:47]} 24. Nxb6 {[%clk 0:00:34]}  axb6 {[%clk 0:01:48]} 25. Rd6 {[%clk 0:00:34]}  Rc2 {[%clk 0:01:25]} 26. Rxb6 {[%clk 0:00:33]}  Rd8 {[%clk 0:01:25]} 27. f4 {[%clk 0:00:07]}  e4 {[%clk 0:01:23]} 28. g4 {[%clk 0:00:08]}  e3 {[%clk 0:01:18]} 29. gxf5 {[%clk 0:00:07]}  e2 {[%clk 0:01:17]} 30. Kf2 {[%clk 0:00:06]}  Rd4 {[%clk 0:01:16]} 31. Rxe2 {[%clk 0:00:05]}  Rxf4+ {[%clk 0:01:14]} 32. Ke3 {[%clk 0:00:05]}  Rxe2+ {[%clk 0:01:03]} 33. Kxe2 {[%clk 0:00:06]}  a5 {[%clk 0:00:55]} 34. Rb5 {[%clk 0:00:05]}  Rh4 {[%clk 0:00:49]} 35. Rxa5 {[%clk 0:00:04]}  Rxh2+ {[%clk 0:00:49]} 36. Kf3 {[%clk 0:00:05]}  Rxb2 {[%clk 0:00:49]} 37. a4 {[%clk 0:00:05]}  Ra2 {[%clk 0:00:47]} 38. Ra7 {[%clk 0:00:05]}  h6 {[%clk 0:00:47]} 39. Kg4 {[%clk 0:00:06]}  Rg2+ {[%clk 0:00:43]} 40. Kf3 {[%clk 0:00:06]}  Ra2 {[%clk 0:00:42]} 41. a5 {[%clk 0:00:06]}  Ra4 {[%clk 0:00:42]} 42. a6 {[%clk 0:00:06]}  Kh8 {[%clk 0:00:40]} 43. Ke3 {[%clk 0:00:04]}  Kg8 {[%clk 0:00:40]} 44. Kd3 {[%clk 0:00:05]}  Kh8 {[%clk 0:00:40]} 45. Kc3 {[%clk 0:00:05]}  Ra5 {[%clk 0:00:37]} 46. f6 {[%clk 0:00:04]}  gxf6 {[%clk 0:00:35]} 47. Kb4 {[%clk 0:00:04]}  Ra1 {[%clk 0:00:32]} 48. Kb5 {[%clk 0:00:05]}  Rb1+ {[%clk 0:00:30]} 49. Kc6 {[%clk 0:00:05]}  Rc1+ {[%clk 0:00:28]} 50. Kd6 {[%clk 0:00:06]}  Rd1+ {[%clk 0:00:28]} 51. Ke6 {[%clk 0:00:06]}  Re1+ {[%clk 0:00:28]} 52. Kxf6 {[%clk 0:00:07]}  Rf1+ {[%clk 0:00:21]} 53. Kg6 {[%clk 0:00:07]}  Rg1+ {[%clk 0:00:20]} 54. Kxh6 {[%clk 0:00:08]}  Rh1+ {[%clk 0:00:20]} 55. Kg6 {[%clk 0:00:08]}  Rg1+ {[%clk 0:00:20]} 56. Kf6 {[%clk 0:00:09]}  Ra1 {[%clk 0:00:19]} 57. Ke6 {[%clk 0:00:07]}  Kg8 {[%clk 0:00:19]} 58. Kd6 {[%clk 0:00:07]}  Kf8 {[%clk 0:00:19]} 59. Kc6 {[%clk 0:00:08]}  Ke8 {[%clk 0:00:19]} 60. Kb7 {[%clk 0:00:08]}  Kd7 {[%clk 0:00:17]} 61. Ra8 {[%clk 0:00:09]}  Rb1+ {[%clk 0:00:15]} 62. Ka7 {[%clk 0:00:09]}  Kc7 {[%clk 0:00:15]} 63. Rh8 {[%clk 0:00:09]}  Ra1 {[%clk 0:00:14]} 64. Rh4 {[%clk 0:00:09]}  Kc8 {[%clk 0:00:13]} 65. Rc4+ {[%clk 0:00:09]}  Kd7 {[%clk 0:00:13]} 66. Kb8 {[%clk 0:00:09]}  Rb1+ {[%clk 0:00:12]} 67. Ka8 {[%clk 0:00:09]}  Ra1 {[%clk 0:00:12]} 68. a7 {[%clk 0:00:06]}  Kd8 {[%clk 0:00:12]} 69. Kb7 {[%clk 0:00:04]}  Rb1+ {[%clk 0:00:10]} 70. Ka6 {[%clk 0:00:05]}  Ra1+ {[%clk 0:00:10]} 71. Kb6 {[%clk 0:00:06]}  Kd7 {[%clk 0:00:07]} 72. Rc7+ {[%clk 0:00:01]}  Kd8 {[%clk 0:00:00]} 73. Rc5 {[%clk 0:00:02]} 1-0


[Site "https://www.chess.com"]

[Event "Titled Tuesday Blitz June 20 Early 2023"]
[White "Xavier_mompel"]
[Black "Abduzhaparov"]
[WhiteElo "2227"]
[BlackElo "2383"]
[Result "1-0"]
[Round "6"]
[TimeControl "180+2"]
[Date "2023.06.20"]
[WhiteClock "0:00:10"]
[BlackClock "0:00:00"]
[Board "171"]

1. e4 {[%clk 0:03:00]}  d6 {[%clk 0:03:00]} 2. d4 {[%clk 0:03:00]}  Nf6 {[%clk 0:03:01]} 3. Nc3 {[%clk 0:02:59]}  e5 {[%clk 0:03:02]} 4. dxe5 {[%clk 0:02:59]}  dxe5 {[%clk 0:03:03]} 5. Qxd8+ {[%clk 0:02:59]}  Kxd8 {[%clk 0:03:04]} 6. Bc4 {[%clk 0:02:59]}  Ke8 {[%clk 0:03:04]} 7. Bg5 {[%clk 0:02:57]}  Nbd7 {[%clk 0:03:03]} 8. O-O-O {[%clk 0:02:49]}  a6 {[%clk 0:03:02]} 9. f3 {[%clk 0:02:45]}  h6 {[%clk 0:03:00]} 10. Bh4 {[%clk 0:02:35]}  g5 {[%clk 0:02:54]} 11. Bg3 {[%clk 0:02:35]}  Nh5 {[%clk 0:02:46]} 12. Nd5 {[%clk 0:02:28]}  Bd6 {[%clk 0:02:42]} 13. Ne3 {[%clk 0:02:11]}  Nb6 {[%clk 0:02:35]} 14. Bb3 {[%clk 0:02:10]}  Be6 {[%clk 0:02:21]} 15. Nd5 {[%clk 0:02:02]}  Nxd5 {[%clk 0:02:16]} 16. Bxd5 {[%clk 0:02:00]}  Rb8 {[%clk 0:02:02]} 17. Ne2 {[%clk 0:01:49]}  Ke7 {[%clk 0:01:58]} 18. c4 {[%clk 0:01:46]}  Bc8 {[%clk 0:01:31]} 19. c5 {[%clk 0:01:39]}  Bxc5 {[%clk 0:01:16]} 20. Bxe5 {[%clk 0:01:39]}  f6 {[%clk 0:01:10]} 21. Bxc7 {[%clk 0:01:34]}  Ra8 {[%clk 0:01:10]} 22. Ba5 {[%clk 0:01:18]}  Bd7 {[%clk 0:00:59]} 23. Bc3 {[%clk 0:01:17]}  Bb5 {[%clk 0:00:56]} 24. Nd4 {[%clk 0:01:16]}  Bxd4 {[%clk 0:00:51]} 25. Bxd4 {[%clk 0:01:14]}  Nf4 {[%clk 0:00:52]} 26. Kb1 {[%clk 0:00:51]}  Rad8 {[%clk 0:00:45]} 27. Bc5+ {[%clk 0:00:46]}  Ke8 {[%clk 0:00:41]} 28. Bxb7 {[%clk 0:00:39]}  Nd3 {[%clk 0:00:40]} 29. Ba3 {[%clk 0:00:34]}  Kf7 {[%clk 0:00:34]} 30. Bd5+ {[%clk 0:00:31]}  Kg6 {[%clk 0:00:34]} 31. Rd2 {[%clk 0:00:24]}  Rhe8 {[%clk 0:00:32]} 32. Rhd1 {[%clk 0:00:22]}  Ne5 {[%clk 0:00:23]} 33. h4 {[%clk 0:00:20]}  Rb8 {[%clk 0:00:06]} 34. hxg5 {[%clk 0:00:18]}  hxg5 {[%clk 0:00:07]} 35. Ka1 {[%clk 0:00:15]}  Ba4 {[%clk 0:00:06]} 36. b3 {[%clk 0:00:14]}  Bb5 {[%clk 0:00:06]} 37. Rh1 {[%clk 0:00:12]}  Rh8 {[%clk 0:00:00]} 38. Rc1 {[%clk 0:00:10]} 1-0


[Site "https://www.chess.com"]

[Event "Titled Tuesday Blitz June 20 Early 2023"]
[White "Gyulamiryan-koryun"]
[Black "sebastianmarinp"]
[WhiteElo "1749"]
[BlackElo "2373"]
[Result "0-1"]
[Round "6"]
[TimeControl "180+2"]
[Date "2023.06.20"]
[WhiteClock "0:00:00"]
[BlackClock "0:00:05"]
[Board "173"]

1. d4 {[%clk 0:02:59]}  Nf6 {[%clk 0:02:58]} 2. c4 {[%clk 0:02:59]}  e6 {[%clk 0:02:58]} 3. Nf3 {[%clk 0:02:59]}  Bb4+ {[%clk 0:02:57]} 4. Bd2 {[%clk 0:02:55]}  a5 {[%clk 0:02:57]} 5. g3 {[%clk 0:02:53]}  d5 {[%clk 0:02:56]} 6. Bg2 {[%clk 0:02:52]}  O-O {[%clk 0:02:56]} 7. O-O {[%clk 0:02:51]}  dxc4 {[%clk 0:02:56]} 8. Qc2 {[%clk 0:02:48]}  b5 {[%clk 0:02:48]} 9. Ne5 {[%clk 0:02:42]}  Nd5 {[%clk 0:02:47]} 10. a4 {[%clk 0:02:27]}  Bxd2 {[%clk 0:02:11]} 11. Qxd2 {[%clk 0:02:12]}  c6 {[%clk 0:02:09]} 12. Na3 {[%clk 0:02:07]}  Ba6 {[%clk 0:02:06]} 13. e4 {[%clk 0:01:55]}  Nb4 {[%clk 0:02:00]} 14. axb5 {[%clk 0:01:41]}  cxb5 {[%clk 0:02:01]} 15. d5 {[%clk 0:01:40]}  Nd7 {[%clk 0:01:55]} 16. Ng4 {[%clk 0:00:59]}  exd5 {[%clk 0:01:48]} 17. exd5 {[%clk 0:00:59]}  Nf6 {[%clk 0:01:43]} 18. Ne3 {[%clk 0:00:55]}  Qd6 {[%clk 0:01:32]} 19. Qd4 {[%clk 0:00:48]}  Rfe8 {[%clk 0:01:25]} 20. Nf5 {[%clk 0:00:39]}  Qe5 {[%clk 0:01:24]} 21. Qxe5 {[%clk 0:00:28]}  Rxe5 {[%clk 0:01:25]} 22. Nd4 {[%clk 0:00:20]}  Rb8 {[%clk 0:01:09]} 23. Nc6 {[%clk 0:00:17]}  Nxc6 {[%clk 0:01:07]} 24. dxc6 {[%clk 0:00:18]}  Kf8 {[%clk 0:00:43]} 25. Nc2 {[%clk 0:00:16]}  b4 {[%clk 0:00:29]} 26. Rfe1 {[%clk 0:00:12]}  Rxe1+ {[%clk 0:00:28]} 27. Rxe1 {[%clk 0:00:12]}  Rc8 {[%clk 0:00:23]} 28. Nd4 {[%clk 0:00:12]}  Ne8 {[%clk 0:00:19]} 29. Nf5 {[%clk 0:00:09]}  Rc7 {[%clk 0:00:16]} 30. Rd1 {[%clk 0:00:07]}  g6 {[%clk 0:00:15]} 31. Nd4 {[%clk 0:00:07]}  Bc8 {[%clk 0:00:13]} 32. Nb5 {[%clk 0:00:06]}  Re7 {[%clk 0:00:12]} 33. Ra1 {[%clk 0:00:04]}  Ba6 {[%clk 0:00:10]} 34. Rxa5 {[%clk 0:00:04]}  Re1+ {[%clk 0:00:09]} 35. Bf1 {[%clk 0:00:03]}  Bxb5 {[%clk 0:00:07]} 36. Rxb5 {[%clk 0:00:04]}  c3 {[%clk 0:00:08]} 37. bxc3 {[%clk 0:00:04]}  bxc3 {[%clk 0:00:09]} 38. Rc5 {[%clk 0:00:03]}  Re7 {[%clk 0:00:07]} 39. Bb5 {[%clk 0:00:02]}  Rc7 {[%clk 0:00:06]} 40. Rxc3 {[%clk 0:00:02]}  Ke7 {[%clk 0:00:06]} 41. Ba4 {[%clk 0:00:02]}  Nf6 {[%clk 0:00:05]} 42. Kf1 {[%clk 0:00:02]}  Kd6 {[%clk 0:00:06]} 43. Rd3+ {[%clk 0:00:02]}  Kc5 {[%clk 0:00:04]} 44. f3 {[%clk 0:00:00]}  Kb4 {[%clk 0:00:05]} 0-1


[Site "https://www.chess.com"]

[Event "Titled Tuesday Blitz June 20 Early 2023"]
[White "Vargas Rodriguez, Wilver"]
[Black "Pastar, Slaven"]
[WhiteFideId "3509672"]
[BlackFideId "14402718"]
[WhiteElo "2245"]
[BlackElo "2219"]
[Result "0-1"]
[Round "6"]
[TimeControl "180+2"]
[Date "2023.06.20"]
[WhiteClock "0:00:33"]
[BlackClock "0:01:27"]
[Board "174"]

1. Nf3 {[%clk 0:03:00]}  b6 {[%clk 0:02:59]} 2. g3 {[%clk 0:02:57]}  Bb7 {[%clk 0:03:00]} 3. Bg2 {[%clk 0:02:58]}  g6 {[%clk 0:03:00]} 4. c4 {[%clk 0:02:54]}  Bg7 {[%clk 0:03:00]} 5. Nc3 {[%clk 0:02:54]}  Nf6 {[%clk 0:03:01]} 6. b4 {[%clk 0:02:54]}  O-O {[%clk 0:03:01]} 7. Bb2 {[%clk 0:02:54]}  Ne4 {[%clk 0:03:00]} 8. Qc2 {[%clk 0:02:51]}  Nxc3 {[%clk 0:02:58]} 9. Bxc3 {[%clk 0:02:52]}  e6 {[%clk 0:02:53]} 10. O-O {[%clk 0:02:41]}  d6 {[%clk 0:02:49]} 11. c5 {[%clk 0:02:14]}  Nc6 {[%clk 0:02:20]} 12. b5 {[%clk 0:02:04]}  Ne7 {[%clk 0:02:19]} 13. c6 {[%clk 0:01:41]}  Bc8 {[%clk 0:02:19]} 14. Bxg7 {[%clk 0:01:39]}  Kxg7 {[%clk 0:02:20]} 15. a4 {[%clk 0:01:37]}  a5 {[%clk 0:02:10]} 16. d4 {[%clk 0:01:22]}  Nd5 {[%clk 0:02:09]} 17. e4 {[%clk 0:01:21]}  Nb4 {[%clk 0:02:09]} 18. Qc3 {[%clk 0:01:07]}  f5 {[%clk 0:01:56]} 19. e5 {[%clk 0:01:05]}  d5 {[%clk 0:01:55]} 20. h4 {[%clk 0:01:03]}  Qe7 {[%clk 0:01:51]} 21. Nd2 {[%clk 0:00:58]}  f4 {[%clk 0:01:49]} 22. Kh2 {[%clk 0:00:54]}  h6 {[%clk 0:01:44]} 23. Kh3 {[%clk 0:00:51]}  g5 {[%clk 0:01:44]} 24. g4 {[%clk 0:00:46]}  h5 {[%clk 0:01:42]} 25. gxh5 {[%clk 0:00:41]}  g4+ {[%clk 0:01:34]} 26. Kxg4 {[%clk 0:00:40]}  Qf7 {[%clk 0:01:27]} 27. Bf3 {[%clk 0:00:33]}  Qf5# {[%clk 0:01:27]} 0-1


[Site "https://www.chess.com"]